[Event "German Bundesliga 2023-24"]
[Site "Germany"]
[Date "2024.02.04"]
[Round "7"]
[White "Mamedyarov, Shakhriyar"]
[Black "Shengelia, David"]
[Result "1-0"]
[ECO "A18"]
[WhiteElo "2734"]
[BlackElo "2494"]
[Annotator "TA"]
[PlyCount "149"]
[EventDate "2023.10.20"]
[EventType "team-tourn"]
[EventCountry "GER"]
[SourceTitle "playchess.com"]
[Source "ChessBase"]
[SourceQuality "1"]
[TimeControl "40/6000+30:3000+30"]

{[%evp 74,149,264,264,264,264,312,264,255,250,394,344,369,354,399,377,381,360,374,360,450,441,451,437,484,405,383,0,553,551,631,601,632,624,658,626,556,539,545,477,1377,1739,2006,1402,1081,866,787,729,743,756,1045,960,5097,3444,5760,3816,29962,5296,29977,29978,29969,29971,29982,29983,29985,29986,29986,29987,29990,29989,29988,29981,29981,29982,29982,29983,29983,29984]} 1. c4 {[%emt 0:00:00]} Nf6 {[%emt 0:00:03]} 2. Nc3 {[%emt 0:00:30]} e6 3. e4 {[%emt 0:00:19]} d5 {[%emt 0:00:50]} 4. e5 {[%emt 0:00:09]} d4 {[%emt 0:00:40]} 5. exf6 {[%emt 0:00:07]} dxc3 {[%emt 0:00:05]} 6. fxg7 {[%emt 0:00:04]} cxd2+ {[%emt 0:00:22]} 7. Bxd2 {[%emt 0:00:04]} Bxg7 {[%emt 0:00:06]} 8. Nf3 {[%emt 0:00:03]} Nc6 {[%emt 0:02:30]} 9. Qb3 {[%emt 0:00:28]} Nd4 {[%emt 0:07:54]} 10. Nxd4 {[%emt 0:02:39]} Qxd4 {[%emt 0:01:34]} 11. Bc3 {[%emt 0:17:22]} Qe4+ {[%emt 0:00:53]} 12. Be2 {[%emt 0:00:03]} e5 {[%emt 0:13:24]} 13. f3 {[%emt 0:05:46]} Qe3 {[%emt 0:09:21]} 14. Qc2 {[%emt 0:10:27]} Be6 {[%emt 0:08:16]} 15. Bd2 {[%emt 0:01:00]} Qc5 {[%emt 0:00:58]} 16. b4 {[%emt 0:03:27]} Qd4 {[%emt 0:13:22]} 17. Rd1 {[%emt 0:00:09]} Qh4+ {[%emt 0:01:08]} 18. g3 {[%emt 0:00:23]} Qh3 {[%emt 0:04:30]} 19. Bf1 {[%emt 0:04:25]} Qh5 {[%emt 0:07:30]} 20. Bg2 {[%emt 0:02:57]} O-O {[%emt 0:06:08]} 21. O-O {[%emt 0:01:11]} Qg6 {[%emt 0:00:06]} 22. Qc1 {[%emt 0:01:23]} Rfd8 {[%emt 0:04:28]} 23. Be3 {[%emt 0:03:32]} Bf8 {[%emt 0:06:11]} 24. a3 {[%emt 0:05:10]} a5 {[%emt 0:01:03]} 25. Rxd8 {[%emt 0:12:28]} Rxd8 {[%emt 0:00:05]} 26. bxa5 {[%emt 0:00:03]} Qd3 {[%emt 0:17:32]} 27. c5 {[%emt 0:00:50]} Qc4 {[%emt 0:00:46]} 28. Qxc4 {[%emt 0:19:38]} Bxc4 {[%emt 0:00:02]} 29. Rc1 {[%emt 0:00:04]} Bb5 {[%emt 0:01:15]} 30. c6 {[%emt 0:03:01]} bxc6 {[%emt 0:03:40]} 31. a4 {[%emt 0:00:07]} Bxa4 {[%emt 0:00:21]} 32. a6 {[%emt 0:00:01]} Ra8 {[%emt 0:00:47]} 33. a7 {[%emt 0:04:35]} c5 {[%emt 0:00:15]} 34. Rb1 {[%emt 0:00:00]} Kg7 {[%emt 0:00:51]} 35. Rb8 {[%emt 0:00:06]} Bc6 {[%emt 0:00:27]} 36. Rxa8 {[%emt 0:01:37]} Bxa8 {[%emt 0:00:02]} 37. f4 {[%emt 0:02:50]} e4 {[%emt 0:00:16]} 38. Bf1 {[%emt 0:01:48]} Kf6 {[%emt 0:01:12]} 39. Bc4 {[%emt 0:00:57]} Bd6 {[%emt 0:00:07]} 40. Kf2 {[%emt 0:03:02]} Kg6 {[%emt 0:00:51]} 41. Ke2 {[%emt 0:55:16]} f5 {[%emt 0:01:48]} (41... h6 $142 42. Kd2 Be7) 42. Kd2 $18 {[%emt 0:00:00]} Kf6 {[%emt 0:01:06]} 43. Kc3 {[%emt 0:00:00]} h6 {[%emt 0:00:51]} 44. Kb3 {[%emt 0:00:00]} Ke7 {[%emt 0:01:20]} 45. Bg8 {[%emt 0:00:00]} Bb7 {[%emt 0:00:24]} 46. Ka4 {[%emt 0:00:00]} c6 {[%emt 0:03:23]} 47. h3 {[%emt 0:00:00]} Kd7 {[%emt 0:06:15]} 48. Bh7 {[%emt 0:00:00]} Ke6 {[%emt 0:03:58]} 49. Kb3 {[%emt 0:00:00]} Be7 {[%emt 0:00:48]} 50. Ka4 $2 {[%emt 0:00:00]} (50. Kc4 $18) 50... Kd5 $2 {[%emt 0:27:18][%mdl 8192]} (50... Bd6 $1 $11 {and Black stays safe.} 51. g4 fxg4) 51. Bxf5 $18 {[%emt 0:00:00]} Bf6 {[%emt 0:01:55]} 52. Bc8 {[%emt 0:00:00]} Ba8 {[%emt 0:00:03]} 53. f5 {[%emt 0:00:00]} Bd4 {[%emt 0:01:17]} 54. Be6+ {[%emt 0:00:00]} Ke5 {[%emt 0:00:24]} 55. Bf4+ {[%emt 0:00:00]} Kf6 {[%emt 0:00:01]} 56. g4 {[%emt 0:00:00]} c4 {[%emt 0:05:04]} (56... e3 $142 57. Bc4 (57. Bxh6 e2 $18) 57... e2 58. Bxe2 (58. Bxh6 {is a self mate.} e1=Q 59. g5+ Ke7 60. f6+ Kd8 61. Ka3 Qb4+ 62. Ka2 Qb2#) 58... c4 59. Bxh6 (59. Bxc4 Bxa7 60. Bxh6 Bf2 $18) 59... Bxa7 60. Bxc4 Bf2 61. g5+ Kxf5 62. Bd3+ Ke5) 57. Bxh6 $18 {[%emt 0:00:00]} c3 {[%emt 0:00:59]} 58. Kb3 {[%emt 0:00:00]} e3 {[%emt 0:00:38]} 59. Bf4 {[%emt 0:00:00]} e2 {[%emt 0:01:06]} 60. g5+ {[%emt 0:00:00]} Ke7 {[%emt 0:00:56]} 61. Bg3 {[%emt 0:00:00]} Be3 {[%emt 0:00:55]} 62. g6 {[%emt 0:00:00]} Kf6 {[%emt 0:00:15]} 63. Kxc3 {[%emt 0:00:00]} Bxa7 {[%emt 0:00:35]} 64. Kd2 {[%emt 0:00:00]} Bd4 {[%emt 0:00:41]} 65. Kxe2 {[%emt 0:00:00]} (65. Bh4+ $142 Kg7 66. Bg5 (66. Kxe2 Kh6 $18) 66... e1=R 67. Kxe1 Bc3+ 68. Ke2 Bb7 69. h4 Ba6+ 70. Kf3) 65... c5 {[%emt 0:00:03]} 66. Bh4+ {[%emt 0:00:03]} Kg7 {[%emt 0:00:05]} 67. Bg5 {[%emt 0:00:05]} Be4 {[%emt 0:01:29]} 68. h4 {[%emt 0:00:11]} c4 {[%emt 0:00:29]} 69. h5 {[%emt 0:00:12]} ({Weaker is} 69. Bxc4 Bxf5 70. Bf4 (70. h5 Bg4+ 71. Kd3 Bf6 $11) 70... Bxg6 $11) 69... c3 {[%emt 0:00:21]} 70. h6+ {[%emt 0:00:04]} Kh8 {[%emt 0:00:12]} 71. Be3 {[%emt 0:01:16]} Bf6 {[%emt 0:00:16]} 72. g7+ {[%emt 0:00:12]} Bxg7 {[%emt 0:00:03]} 73. hxg7+ {[%emt 0:00:03]} Kxg7 {[%emt 0:00:02]} 74. Bd4+ {[%emt 0:00:03]} Kh6 {[%emt 0:00:05]} 75. Bxc3 {[%emt 0:00:06]} 1-0

[Event "German Bundesliga 2023-24"]
[Site "Germany"]
[Date "2024.02.04"]
[Round "7"]
[White "Eljanov, Pavel"]
[Black "Duda, Jan-Krzysztof"]
[Result "1/2-1/2"]
[ECO "A28"]
[WhiteElo "2695"]
[BlackElo "2726"]
[Annotator "ChessBase"]
[PlyCount "82"]
[EventDate "2023.10.20"]
[EventType "team-tourn"]
[EventCountry "GER"]
[SourceTitle "playchess.com"]
[Source "ChessBase"]
[SourceQuality "1"]
[TimeControl "40/6000+30:3000+30"]

1. c4 {[%emt 0:00:05]} Nf6 {[%emt 0:00:08]} 2. Nc3 {[%emt 0:00:09]} e5 {[%emt 0:00:45]} 3. Nf3 {[%emt 0:00:08]} Nc6 {[%emt 0:00:08]} 4. e4 {[%emt 0:00:12]} Bc5 {[%emt 0:04:16]} 5. Nxe5 {[%emt 0:00:14]} Nxe5 {[%emt 0:00:07]} 6. d4 {[%emt 0:00:08]} Bb4 {[%emt 0:00:04]} 7. dxe5 {[%emt 0:00:06]} Nxe4 {[%emt 0:00:06]} 8. Qf3 {[%emt 0:00:09]} Nxc3 {[%emt 0:01:07]} 9. bxc3 {[%emt 0:00:06]} Bc5 {[%emt 0:00:44]} 10. Bd3 {[%emt 0:03:50]} d6 {[%emt 0:02:40]} 11. Bf4 {[%emt 0:05:28]} dxe5 {[%emt 0:06:03]} 12. Bxe5 {[%emt 0:00:09]} O-O {[%emt 0:00:22]} 13. O-O {[%emt 0:00:55]} Bd6 {[%emt 0:05:47]} 14. Rfd1 {[%emt 0:13:34]} Qh4 {[%emt 0:06:45]} 15. Bxd6 {[%emt 0:02:30]} cxd6 {[%emt 0:00:06]} 16. g3 {[%emt 0:12:06]} Qe7 {[%emt 0:04:35]} 17. Qe4 {[%emt 0:01:24]} Qxe4 {[%emt 0:00:20]} 18. Bxe4 {[%emt 0:00:04]} Rb8 {[%emt 0:06:17]} 19. Rxd6 {[%emt 0:00:36]} Be6 {[%emt 0:01:20]} 20. Rb1 {[%emt 0:06:29]} b6 {[%emt 0:02:17]} 21. c5 {[%emt 0:19:01]} bxc5 {[%emt 0:03:09]} 22. Rxb8 {[%emt 0:00:09]} Rxb8 {[%emt 0:00:04]} 23. Ra6 {[%emt 0:00:04]} Rb2 {[%emt 0:01:22]} 24. a4 {[%emt 0:00:10]} Rb3 {[%emt 0:07:45]} 25. Rxa7 {[%emt 0:03:35]} f5 {[%emt 0:08:55]} 26. Bc6 {[%emt 0:02:13]} Rxc3 {[%emt 0:00:34]} 27. Re7 {[%emt 0:00:29]} Bc4 {[%emt 0:01:59]} 28. Re5 {[%emt 0:10:49]} Bd3 {[%emt 0:03:10]} 29. a5 {[%emt 0:08:21]} Kf7 {[%emt 0:07:50]} 30. Bd5+ {[%emt 0:03:31]} Kf8 {[%emt 0:01:25]} 31. Bb7 {[%emt 0:03:17]} c4 {[%emt 0:01:20]} 32. a6 {[%emt 0:00:22]} Ra3 {[%emt 0:00:09]} 33. Rc5 {[%emt 0:07:38]} Ke7 {[%emt 0:01:54]} 34. f4 {[%emt 0:02:56]} Ra2 {[%emt 0:08:56]} 35. Rd5 {[%emt 0:01:29]} g6 {[%emt 0:02:56]} 36. Rd4 {[%emt 0:00:39]} Be2 {[%emt 0:00:24]} 37. Rd5 {[%emt 0:01:35]} Bd3 {[%emt 0:05:41]} 38. Rd4 {[%emt 0:00:30]} Be2 {[%emt 0:02:13]} 39. Rd5 {[%emt 0:00:19]} c3 {[%emt 0:00:06]} 40. Rc5 {[%emt 0:00:11]} Bxa6 {[%emt 0:00:33]} 41. Bxa6 {[%emt 0:50:08]} Rxa6 {[%emt 0:59:09]} 1/2-1/2

[Event "German Bundesliga 2023-24"]
[Site "Germany"]
[Date "2024.02.04"]
[Round "7"]
[White "Korobov, Anton"]
[Black "Bromberger, Stefan"]
[Result "1/2-1/2"]
[ECO "D35"]
[WhiteElo "2658"]
[BlackElo "2476"]
[Annotator "ChessBase"]
[PlyCount "45"]
[EventDate "2023.10.20"]
[EventType "team-tourn"]
[EventCountry "GER"]
[SourceTitle "playchess.com"]
[Source "ChessBase"]
[SourceQuality "1"]
[TimeControl "40/6000+30:3000+30"]

1. c4 {[%emt 0:00:04]} e6 {[%emt 0:01:25]} 2. Nc3 {[%emt 0:00:20]} d5 {[%emt 0:00:00]} 3. d4 {[%emt 0:00:05]} Nf6 {[%emt 0:00:21]} 4. cxd5 {[%emt 0:00:25]} exd5 {[%emt 0:00:00]} 5. Bg5 {[%emt 0:00:15]} c6 {[%emt 0:00:00]} 6. e3 {[%emt 0:00:06]} Bf5 {[%emt 0:00:00]} 7. Qf3 {[%emt 0:00:21]} Bg6 {[%emt 0:00:00]} 8. Bxf6 {[%emt 0:00:07]} Qxf6 {[%emt 0:00:00]} 9. Qxf6 {[%emt 0:00:10]} gxf6 {[%emt 0:00:00]} 10. Nf3 {[%emt 0:00:07]} a5 {[%emt 0:00:04]} 11. Nh4 {[%emt 0:01:02]} Bb4 {[%emt 0:00:07]} 12. a3 {[%emt 0:02:40]} Bxc3+ {[%emt 0:00:05]} 13. bxc3 {[%emt 0:00:06]} b5 {[%emt 0:00:03]} 14. f3 {[%emt 0:10:01]} Nd7 {[%emt 0:03:52]} 15. Kf2 {[%emt 0:06:33]} Nb6 {[%emt 0:21:42]} 16. e4 {[%emt 0:03:29]} Na4 {[%emt 0:02:41]} 17. exd5 {[%emt 0:22:11]} Nxc3 {[%emt 0:00:08]} 18. dxc6 {[%emt 0:00:04]} O-O-O {[%emt 0:00:41]} 19. Nxg6 {[%emt 0:08:04]} fxg6 {[%emt 0:04:53]} 20. Ke3 {[%emt 0:05:44]} Nd5+ {[%emt 0:18:46]} 21. Kf2 {[%emt 0:00:07]} Nc3 {[%emt 0:00:35]} 22. Ke3 {[%emt 0:07:07]} Nd5+ {[%emt 0:06:57]} 23. Kf2 {[%emt 0:01:25]} 1/2-1/2

[Event "German Bundesliga 2023-24"]
[Site "Germany"]
[Date "2024.02.04"]
[Round "7"]
[White "Kollars, Dmitrij"]
[Black "Huschenbeth, Niclas"]
[Result "1/2-1/2"]
[ECO "C47"]
[WhiteElo "2633"]
[BlackElo "2605"]
[Annotator "ChessBase"]
[PlyCount "67"]
[EventDate "2023.10.20"]
[EventType "team-tourn"]
[EventCountry "GER"]
[SourceTitle "playchess.com"]
[Source "ChessBase"]
[SourceQuality "1"]
[TimeControl "40/6000+30:3000+30"]

1. e4 {[%emt 0:00:07]} e5 {[%emt 0:00:06]} 2. Nf3 {[%emt 0:00:20]} Nc6 {[%emt 0:00:11]} 3. Nc3 {[%emt 0:01:19]} Nf6 {[%emt 0:00:09]} 4. d4 {[%emt 0:00:37]} exd4 {[%emt 0:00:07]} 5. Nxd4 {[%emt 0:00:05]} Bb4 {[%emt 0:00:10]} 6. Nxc6 {[%emt 0:00:27]} bxc6 {[%emt 0:00:07]} 7. Bd3 {[%emt 0:00:06]} d5 {[%emt 0:01:31]} 8. Bd2 {[%emt 0:01:48]} O-O {[%emt 0:00:34]} 9. O-O {[%emt 0:00:05]} Bxc3 {[%emt 0:06:22]} 10. Bxc3 {[%emt 0:00:05]} dxe4 {[%emt 0:00:08]} 11. Bxf6 {[%emt 0:04:13]} Qxf6 {[%emt 0:00:09]} 12. Bxe4 {[%emt 0:00:07]} Qxb2 {[%emt 0:00:17]} 13. Bxc6 {[%emt 0:00:47]} Rb8 {[%emt 0:00:15]} 14. Rb1 {[%emt 0:00:20]} Qxb1 {[%emt 0:00:09]} 15. Qxb1 {[%emt 0:00:04]} Rxb1 {[%emt 0:00:05]} 16. Rxb1 {[%emt 0:00:04]} Rd8 {[%emt 0:00:31]} 17. Bf3 {[%emt 0:01:54]} Bf5 {[%emt 0:01:26]} 18. Rb7 {[%emt 0:03:52]} Bxc2 {[%emt 0:01:30]} 19. Rxc7 {[%emt 0:01:37]} Be4 {[%emt 0:00:59]} 20. Be2 {[%emt 0:07:03]} a5 {[%emt 0:12:30]} 21. f3 {[%emt 0:06:52]} Bd5 {[%emt 0:03:39]} 22. a4 {[%emt 0:01:36]} Bb3 {[%emt 0:24:51]} 23. Bb5 {[%emt 0:03:18]} h5 {[%emt 0:03:20]} 24. Ra7 {[%emt 0:15:15]} Rd1+ {[%emt 0:01:42]} 25. Kf2 {[%emt 0:00:05]} Rd2+ {[%emt 0:00:10]} 26. Kf1 {[%emt 0:01:56]} h4 {[%emt 0:23:14]} 27. Rxa5 {[%emt 0:01:33]} h3 {[%emt 0:02:33]} 28. gxh3 {[%emt 0:01:17]} Rxh2 {[%emt 0:00:37]} 29. Bd7 {[%emt 0:22:13]} Be6 {[%emt 0:07:40]} 30. Bxe6 {[%emt 0:01:00]} fxe6 {[%emt 0:00:04]} 31. Re5 {[%emt 0:00:05]} Kf7 {[%emt 0:04:19]} 32. a5 {[%emt 0:02:40]} Kf6 {[%emt 0:02:30]} 33. Re2 {[%emt 0:02:45]} Rh1+ {[%emt 0:00:10]} 34. Kg2 {[%emt 0:00:21]} 1/2-1/2

[Event "German Bundesliga 2023-24"]
[Site "Germany"]
[Date "2024.02.04"]
[Round "7"]
[White "Santos Latasa, Jaime"]
[Black "Bluebaum, Matthias"]
[Result "1-0"]
[ECO "C11"]
[WhiteElo "2615"]
[BlackElo "2668"]
[Annotator "ChessBase"]
[PlyCount "107"]
[EventDate "2023.10.20"]
[EventType "team-tourn"]
[EventCountry "GER"]
[SourceTitle "playchess.com"]
[Source "ChessBase"]
[SourceQuality "1"]
[TimeControl "40/6000+30:3000+30"]

1. e4 {[%emt 0:00:02]} e6 {[%emt 0:00:13]} 2. d4 {[%emt 0:00:05]} d5 {[%emt 0:00:03]} 3. Nc3 {[%emt 0:00:05]} Nf6 {[%emt 0:00:08]} 4. e5 {[%emt 0:00:05]} Nfd7 {[%emt 0:00:07]} 5. f4 {[%emt 0:00:04]} c5 {[%emt 0:00:11]} 6. Nf3 {[%emt 0:00:03]} Nc6 {[%emt 0:00:05]} 7. Be3 {[%emt 0:00:04]} a6 {[%emt 0:00:38]} 8. Ne2 {[%emt 0:00:27]} Qb6 {[%emt 0:00:53]} 9. Qc1 {[%emt 0:00:11]} Be7 {[%emt 0:02:18]} 10. c3 {[%emt 0:00:19]} O-O {[%emt 0:02:00]} 11. h4 {[%emt 0:00:32]} f6 {[%emt 0:00:13]} 12. h5 {[%emt 0:00:04]} h6 {[%emt 0:00:04]} 13. Rh3 {[%emt 0:00:05]} Qa5 {[%emt 0:00:52]} 14. Bd2 {[%emt 0:00:28]} Qd8 {[%emt 0:01:10]} 15. Qc2 {[%emt 0:00:25]} Rf7 {[%emt 0:07:15]} 16. O-O-O {[%emt 0:01:08]} b5 {[%emt 0:11:31]} 17. g4 {[%emt 0:01:34]} c4 {[%emt 0:08:40]} 18. Rg3 {[%emt 0:05:08]} b4 {[%emt 0:14:11]} 19. g5 {[%emt 0:11:18]} bxc3 {[%emt 0:06:03]} 20. Bxc3 {[%emt 0:00:46]} fxg5 {[%emt 0:03:06]} 21. fxg5 {[%emt 0:00:54]} hxg5 {[%emt 0:00:22]} 22. Bh3 {[%emt 0:00:44]} Nf8 {[%emt 0:00:45]} 23. Rdg1 {[%emt 0:00:44]} Nh7 {[%emt 0:03:34]} 24. Qg6 {[%emt 0:04:42]} Nf8 {[%emt 0:01:53]} 25. Qc2 {[%emt 0:03:12]} Nh7 {[%emt 0:00:10]} 26. h6 {[%emt 0:11:28]} Rb8 {[%emt 0:13:03]} 27. Bg4 {[%emt 0:03:58]} Qf8 {[%emt 0:08:46]} 28. Qg6 {[%emt 0:03:38]} Bb4 {[%emt 0:07:30]} 29. Bxe6 {[%emt 0:05:01]} Bxe6 {[%emt 0:00:12]} 30. Qxe6 {[%emt 0:00:07]} Nd8 {[%emt 0:05:18]} 31. Qg6 {[%emt 0:06:02]} Bxc3 {[%emt 0:01:42]} 32. Nxc3 {[%emt 0:00:19]} Rfb7 {[%emt 0:02:48]} 33. hxg7 {[%emt 0:01:52]} Rxg7 {[%emt 0:03:25]} 34. Qc2 {[%emt 0:03:25]} Qf4+ {[%emt 0:03:03]} 35. Kb1 {[%emt 0:01:25]} Rb5 {[%emt 0:02:45]} 36. Ne2 {[%emt 0:02:14]} Qf7 {[%emt 0:02:58]} 37. Nxg5 {[%emt 0:00:36]} Nxg5 {[%emt 0:00:05]} 38. Rxg5 {[%emt 0:00:08]} Ne6 {[%emt 0:00:01]} 39. Rxg7+ {[%emt 0:00:16]} Nxg7 {[%emt 0:00:01]} 40. Ng3 {[%emt 0:00:43]} Ne6 {[%emt 0:01:37]} 41. Nf5+ {[%emt 0:53:41]} Kf8 {[%emt 0:02:20]} 42. Rh1 {[%emt 0:00:00]} Qg8 {[%emt 0:02:31]} 43. Qh2 {[%emt 0:00:00]} Rb6 {[%emt 0:06:56]} 44. Rg1 {[%emt 0:00:00]} Ng5 {[%emt 0:01:03]} 45. Qf4 {[%emt 0:00:00]} Rg6 {[%emt 0:00:42]} 46. Nh6+ {[%emt 0:00:00]} Nf7 {[%emt 0:00:04]} 47. Nxg8 {[%emt 0:00:00]} Rxg1+ {[%emt 0:00:03]} 48. Kc2 {[%emt 0:00:00]} Rg2+ {[%emt 0:00:40]} 49. Kc3 {[%emt 0:00:00]} Kxg8 {[%emt 0:00:06]} 50. e6 {[%emt 0:00:00]} Ng5 {[%emt 0:00:06]} 51. e7 {[%emt 0:00:00]} Ne4+ {[%emt 0:00:07]} 52. Qxe4 {[%emt 0:00:00]} Rg3+ {[%emt 0:00:03]} 53. Kb4 {[%emt 0:00:00]} a5+ {[%emt 0:00:05]} 54. Ka4 {[%emt 0:00:00]} 1-0

[Event "German Bundesliga 2023-24"]
[Site "Germany"]
[Date "2024.02.04"]
[Round "7"]
[White "Kozak, Adam"]
[Black "Bogner, Sebastian"]
[Result "1/2-1/2"]
[ECO "E53"]
[WhiteElo "2600"]
[BlackElo "2536"]
[Annotator "ChessBase"]
[PlyCount "51"]
[EventDate "2023.10.20"]
[EventType "team-tourn"]
[EventCountry "GER"]
[SourceTitle "playchess.com"]
[Source "ChessBase"]
[SourceQuality "1"]
[TimeControl "40/6000+30:3000+30"]

1. d4 {[%emt 0:00:04]} Nf6 {[%emt 0:00:05]} 2. c4 {[%emt 0:00:14]} e6 {[%emt 0:00:06]} 3. Nc3 {[%emt 0:02:09]} Bb4 {[%emt 0:00:06]} 4. e3 {[%emt 0:00:08]} O-O {[%emt 0:00:24]} 5. Bd3 {[%emt 0:00:09]} d5 {[%emt 0:01:45]} 6. a3 {[%emt 0:00:35]} Bxc3+ {[%emt 0:01:12]} 7. bxc3 {[%emt 0:00:10]} dxc4 {[%emt 0:00:21]} 8. Bxc4 {[%emt 0:00:12]} c5 {[%emt 0:00:06]} 9. Nf3 {[%emt 0:02:17]} Qc7 {[%emt 0:00:45]} 10. Be2 {[%emt 0:00:31]} b6 {[%emt 0:01:16]} 11. Bb2 {[%emt 0:00:18]} Bb7 {[%emt 0:00:05]} 12. Rc1 {[%emt 0:03:48]} Nbd7 {[%emt 0:02:07]} 13. c4 {[%emt 0:01:30]} Rfd8 {[%emt 0:00:09]} 14. O-O {[%emt 0:02:07]} Nf8 {[%emt 0:01:38]} 15. Ne5 {[%emt 0:02:16]} Ng6 {[%emt 0:04:06]} 16. Nxg6 {[%emt 0:00:16]} hxg6 {[%emt 0:00:02]} 17. Re1 {[%emt 0:03:31]} Rac8 {[%emt 0:09:37]} 18. Qb3 {[%emt 0:04:32]} Rd7 {[%emt 0:03:41]} 19. f3 {[%emt 0:14:29]} cxd4 {[%emt 0:20:14]} 20. exd4 {[%emt 0:02:12]} Qf4 {[%emt 0:00:17]} 21. g3 {[%emt 0:02:49]} Qf5 {[%emt 0:03:18]} 22. Rcd1 {[%emt 0:15:38]} Rdc7 {[%emt 0:02:23]} 23. Bc1 {[%emt 0:03:34]} Nd7 {[%emt 0:12:29]} 24. Bb2 {[%emt 0:18:59]} Nf6 {[%emt 0:07:50]} 25. Bc1 {[%emt 0:05:55]} Nd7 {[%emt 0:01:52]} 26. Bb2 {[%emt 0:02:16]} 1/2-1/2

[Event "German Bundesliga 2023-24"]
[Site "Germany"]
[Date "2024.02.04"]
[Round "7"]
[White "Wagner, Dennis"]
[Black "Hertneck, Gerald"]
[Result "1-0"]
[ECO "D17"]
[WhiteElo "2599"]
[BlackElo "2441"]
[Annotator "ChessBase"]
[PlyCount "40"]
[EventDate "2023.10.20"]
[EventType "team-tourn"]
[EventCountry "GER"]
[SourceTitle "playchess.com"]
[Source "ChessBase"]
[SourceQuality "1"]
[TimeControl "40/6000+30:3000+30"]

1. d4 {[%emt 0:00:05]} d5 {[%emt 0:00:04]} 2. c4 {[%emt 0:00:06]} c6 {[%emt 0:00:04]} 3. Nf3 {[%emt 0:00:06]} Nf6 {[%emt 0:00:06]} 4. Nc3 {[%emt 0:00:09]} dxc4 {[%emt 0:00:27]} 5. a4 {[%emt 0:00:09]} Bf5 {[%emt 0:00:09]} 6. Ne5 {[%emt 0:00:15]} e6 {[%emt 0:00:16]} 7. f3 {[%emt 0:00:27]} Bb4 {[%emt 0:00:06]} 8. e4 {[%emt 0:01:52]} Bxe4 {[%emt 0:00:07]} 9. fxe4 {[%emt 0:00:04]} Nxe4 {[%emt 0:00:08]} 10. Bd2 {[%emt 0:01:02]} Qxd4 {[%emt 0:00:06]} 11. Nxe4 {[%emt 0:00:10]} Qxe4+ {[%emt 0:00:38]} 12. Qe2 {[%emt 0:00:15]} Bxd2+ {[%emt 0:00:00]} 13. Kxd2 {[%emt 0:00:02]} Qd5+ {[%emt 0:01:02]} 14. Ke1 {[%emt 0:00:15]} Qa5+ {[%emt 0:05:44]} 15. Kf2 {[%emt 0:00:10]} Qb6+ {[%emt 0:00:09]} 16. Qe3 {[%emt 0:09:55]} O-O {[%emt 0:31:38]} 17. Qxb6 {[%emt 0:18:42]} axb6 {[%emt 0:00:22]} 18. Bxc4 {[%emt 0:00:05]} Ra5 {[%emt 0:00:05]} 19. Rhe1 {[%emt 0:00:07]} c5 {[%emt 0:06:24]} 20. Bb5 {[%emt 0:03:30]} Ra8 {[%emt 0:00:20]} 1-0

[Event "German Bundesliga 2023-24"]
[Site "Germany"]
[Date "2024.02.04"]
[Round "7"]
[White "Zilka, Stepan"]
[Black "Dragnev, Valentin"]
[Result "1/2-1/2"]
[ECO "C89"]
[WhiteElo "2599"]
[BlackElo "2586"]
[Annotator "ChessBase"]
[PlyCount "46"]
[EventDate "2023.10.20"]
[EventType "team-tourn"]
[EventCountry "GER"]
[SourceTitle "playchess.com"]
[Source "ChessBase"]
[SourceQuality "1"]
[TimeControl "40/6000+30:3000+30"]

1. e4 {[%emt 0:00:06]} e5 {[%emt 0:00:10]} 2. Nf3 {[%emt 0:00:08]} Nc6 {[%emt 0:00:08]} 3. Bb5 {[%emt 0:00:07]} a6 {[%emt 0:00:09]} 4. Ba4 {[%emt 0:00:05]} Nf6 {[%emt 0:00:07]} 5. O-O {[%emt 0:00:09]} Be7 {[%emt 0:00:03]} 6. Re1 {[%emt 0:00:06]} b5 {[%emt 0:00:07]} 7. Bb3 {[%emt 0:00:04]} O-O {[%emt 0:00:28]} 8. c3 {[%emt 0:00:58]} d5 {[%emt 0:00:28]} 9. exd5 {[%emt 0:00:16]} Nxd5 {[%emt 0:00:09]} 10. Nxe5 {[%emt 0:00:08]} Nxe5 {[%emt 0:00:10]} 11. Rxe5 {[%emt 0:00:06]} c6 {[%emt 0:00:31]} 12. d3 {[%emt 0:00:52]} Bd6 {[%emt 0:00:14]} 13. Re1 {[%emt 0:00:13]} Qh4 {[%emt 0:00:49]} 14. g3 {[%emt 0:00:40]} Qh3 {[%emt 0:00:04]} 15. Re4 {[%emt 0:01:53]} Nf6 {[%emt 0:00:40]} 16. Rh4 {[%emt 0:02:38]} Qf5 {[%emt 0:00:15]} 17. Nd2 {[%emt 0:01:18]} Ng4 {[%emt 0:00:53]} 18. Qe2 {[%emt 0:11:02]} Qg6 {[%emt 0:22:57]} 19. Nf1 {[%emt 0:15:00]} Bf5 {[%emt 0:31:03]} 20. Ne3 {[%emt 0:00:08]} Nxe3 {[%emt 0:00:58]} 21. Bxe3 {[%emt 0:00:35]} Bxd3 {[%emt 0:12:27]} 22. Qf3 {[%emt 0:00:30]} c5 {[%emt 0:00:39]} 23. Bd5 {[%emt 0:02:12]} Rad8 {[%emt 0:04:39]} 1/2-1/2

[Event "German Bundesliga 2023-24"]
[Site "Germany"]
[Date "2024.02.04"]
[Round "7"]
[White "Santos Ruiz, Miguel"]
[Black "Gustafsson, Jan"]
[Result "1/2-1/2"]
[ECO "C54"]
[WhiteElo "2593"]
[BlackElo "2620"]
[Annotator "ChessBase"]
[PlyCount "41"]
[EventDate "2023.10.20"]
[EventType "team-tourn"]
[EventCountry "GER"]
[SourceTitle "playchess.com"]
[Source "ChessBase"]
[SourceQuality "1"]
[TimeControl "40/6000+30:3000+30"]

1. e4 {[%emt 0:00:04]} e5 {[%emt 0:00:18]} 2. Nf3 {[%emt 0:00:05]} Nc6 {[%emt 0:00:12]} 3. Bc4 {[%emt 0:00:07]} Nf6 {[%emt 0:00:10]} 4. d3 {[%emt 0:00:05]} Bc5 {[%emt 0:00:17]} 5. O-O {[%emt 0:00:06]} d6 {[%emt 0:00:23]} 6. c3 {[%emt 0:00:06]} a6 {[%emt 0:00:29]} 7. Re1 {[%emt 0:01:09]} Ba7 {[%emt 0:00:24]} 8. a4 {[%emt 0:00:25]} O-O {[%emt 0:00:29]} 9. h3 {[%emt 0:00:38]} b5 {[%emt 0:00:17]} 10. Ba2 {[%emt 0:08:24]} h6 {[%emt 0:00:44]} 11. Nbd2 {[%emt 0:03:07]} b4 {[%emt 0:01:29]} 12. Nf1 {[%emt 0:02:02]} Be6 {[%emt 0:01:34]} 13. Bxe6 {[%emt 0:06:22]} fxe6 {[%emt 0:00:14]} 14. Be3 {[%emt 0:00:03]} Bxe3 {[%emt 0:00:16]} 15. Rxe3 {[%emt 0:00:05]} Rb8 {[%emt 0:00:31]} 16. d4 {[%emt 0:06:12]} bxc3 {[%emt 0:02:09]} 17. bxc3 {[%emt 0:00:50]} a5 {[%emt 0:00:10]} 18. Ng3 {[%emt 0:33:19]} Rb2 {[%emt 0:04:54]} 19. Re2 {[%emt 0:01:54]} Rb6 {[%emt 0:09:28]} 20. Qd3 {[%emt 0:00:34]} Qd7 {[%emt 0:12:05]} 21. Rd2 {[%emt 0:06:46]} 1/2-1/2